bitfinex-derivatives/quotes_BTCF0:USTF0_20241116
["timestamp","ask_amount","ask_price","bid_price","bid_amount"]
[1731784075703,0.00569887,91365.0,91364.0,0.62881596]
[1731784076704,0.00569887,91365.0,91364.0,0.72213946]
[1731784076910,0.00569887,91365.0,91364.0,0.71187784]
[1731784077111,0.00569887,91365.0,91364.0,0.62881591]
[1731784077407,0.00569887,91365.0,91364.0,0.53863461]
[1731784077618,0.00569887,91365.0,91364.0,0.62881597]
[1731784077795,0.00569887,91365.0,91364.0,0.62881576]
[1731784078213,0.00569887,91365.0,91364.0,0.72213899]
[1731784078394,0.00569887,91365.0,91364.0,0.97233781]
[1731784078597,0.00677141,91375.0,91374.0,0.054695]
[1731784078911,0.00677141,91375.0,91374.0,0.15143866]
[1731784079714,0.00677141,91375.0,91374.0,0.16018866]
[1731784080799,0.00677141,91375.0,91374.0,0.16018865]
[1731784081799,0.00677141,91375.0,91374.0,0.063445]
[1731784082006,0.00677141,91375.0,91374.0,0.25893511]
[1731784082199,0.00677141,91375.0,91374.0,0.063445]
[1731784084306,0.00677141,91375.0,91374.0,0.00875]
[1731784084507,0.00677141,91375.0,91354.0,0.26067776]
[1731784084508,0.0547,91365.0,91357.0,0.054705]
[1731784084720,0.054703,91360.0,91357.0,0.054705]
[1731784084904,0.054703,91360.0,91358.0,0.00342119]
[1731784085117,0.054703,91360.0,91359.0,0.00342119]
[1731784086806,0.47638623,91360.0,91358.0,0.00875]
[1731784087101,0.47638623,91360.0,91348.0,0.0051]
[1731784087102,0.05471,91349.0,91348.0,0.0051]
[1731784087404,0.3608,91352.0,91351.0,0.054709]
[1731784088506,0.054704,91360.0,91358.0,0.054705]
[1731784088704,0.054704,91360.0,91358.0,0.063455]
[1731784088906,0.16257447,91364.0,91362.0,0.054702]
[1731784089100,0.0317,91364.0,91362.0,0.054702]
[1731784089300,0.054701,91364.0,91362.0,0.054702]
[1731784089507,0.054701,91364.0,91358.0,0.00875]
[1731784089508,0.13087447,91369.0,91366.0,0.0547]
[1731784089715,0.16267447,91372.0,91370.0,0.054697]
[1731784090013,0.0318,91372.0,91370.0,0.054697]
[1731784091415,0.3608,91373.0,91372.0,0.054696]
[1731784092309,0.3608,91373.0,91372.0,0.25014831]
[1731784093809,0.3608,91373.0,91372.0,0.054696]
[1731784095006,0.3608,91373.0,91372.0,0.25030787]
[1731784095199,0.3608,91373.0,91372.0,0.054696]
[1731784095711,0.3608,91373.0,91358.0,0.44526482]
[1731784095712,0.00677141,91375.0,91374.0,0.054695]
[1731784096410,0.00677141,91375.0,91374.0,0.31556807]
[1731784096607,0.00677141,91375.0,91374.0,0.31557973]
[1731784097216,0.00677141,91375.0,91374.0,0.054695]
[1731784098200,0.00677141,91375.0,91374.0,0.31556724]
[1731784098515,0.00677141,91375.0,91373.0,0.26087224]
[1731784098909,0.00677141,91375.0,91374.0,0.00342058]
[1731784099117,0.13764588,91375.0,91374.0,0.00342058]
[1731784099305,0.00677141,91375.0,91374.0,0.00342058]
[1731784099710,0.16978855,91375.0,91374.0,0.00342058]
[1731784100009,0.00677141,91375.0,91374.0,0.00342058]
[1731784100410,0.16978855,91375.0,91374.0,0.00342058]
[1731784100915,0.16978855,91375.0,91366.0,0.0051]
[1731784100916,0.054699,91367.0,91366.0,0.0051]
[1731784101218,0.054699,91367.0,91358.0,0.00875]
[1731784101219,0.054704,91359.0,91358.0,0.01385]
[1731784101426,0.054704,91359.0,91358.0,0.00875]
[1731784101917,0.415504,91359.0,91358.0,0.00875]
[1731784102225,0.54654211,91359.0,91358.0,0.00875]
[1731784102521,0.54653806,91359.0,91358.0,0.00875]
[1731784102715,0.18573806,91359.0,91358.0,0.00875]
[1731784103123,0.18724219,91359.0,91358.0,0.00875]
[1731784103325,0.05620813,91359.0,91358.0,0.00875]
[1731784103514,0.18723462,91359.0,91358.0,0.00875]
[1731784104019,0.05620813,91359.0,91358.0,0.00875]
[1731784104412,0.18722946,91359.0,91358.0,0.00875]
[1731784104615,0.41700813,91359.0,91358.0,0.00875]
[1731784107217,0.41700813,91359.0,91358.0,0.20442725]
[1731784107418,0.41700813,91359.0,91358.0,0.00875]
[1731784107721,0.41700813,91359.0,91358.0,0.20457429]
[1731784107918,0.46062438,91359.0,91358.0,0.20457429]
[1731784108118,0.46062438,91359.0,91358.0,0.00875]
[1731784110029,0.46062438,91359.0,91350.0,0.0051]
[1731784110243,0.415509,91351.0,91350.0,0.0051]
[1731784110529,0.415509,91351.0,91344.0,0.19582429]
[1731784110530,0.054712,91345.0,91344.0,0.19581467]
[1731784110719,0.054712,91345.0,91338.0,0.00010052]
[1731784110720,0.054715,91341.0,91339.0,0.19581467]
[1731784110912,0.495475,91340.0,91338.0,0.19591519]
[1731784111116,0.00150413,91339.0,91338.0,0.00010052]
[1731784111717,0.08146413,91339.0,91338.0,0.00010052]
[1731784112225,0.08146413,91339.0,91338.0,0.00557619]
[1731784112818,0.08146413,91339.0,91338.0,0.00899846]
[1731784116630,0.08146413,91339.0,91338.0,0.00899835]
[1731784117418,0.08146413,91339.0,91338.0,0.00352276]
[1731784117626,0.08146413,91339.0,91338.0,0.00899848]
[1731784118215,0.08146413,91339.0,91338.0,0.00352276]
[1731784119528,0.08146413,91339.0,91337.0,0.00875]
[1731784119529,0.40990413,91339.0,91337.0,0.00875]
[1731784119729,0.40990413,91339.0,91331.0,0.0051]
[1731784119730,0.14804323,91332.0,91331.0,0.0051]
[1731784119921,0.054725,91324.0,91323.0,0.0051]
[1731784120227,0.054725,91324.0,91315.0,0.0628]
[1731784120228,0.05473,91316.0,91315.0,0.0368]
[1731784120535,0.41553,91316.0,91315.0,0.0317]
[1731784120826,0.41553,91316.0,91315.0,9.743e-05]
[1731784121227,0.41703413,91316.0,91315.0,9.743e-05]
[1731784123530,0.51046681,91316.0,91315.0,9.743e-05]
[1731784130535,0.41714358,91316.0,91315.0,9.743e-05]
[1731784131438,0.41714358,91316.0,91300.0,0.09332323]
[1731784131439,0.32852,91315.0,91295.0,0.00164285]
[1731784131638,0.054748,91286.0,91285.0,0.00064]
[1731784131828,0.495628,91286.0,91285.0,0.00342408]
[1731784132435,0.495628,91286.0,91285.0,0.00355374]
[1731784132734,0.49713213,91286.0,91285.0,0.00355374]
[1731784132937,0.5417388,91286.0,91285.0,0.00355374]
[1731784135343,0.5417388,91286.0,91285.0,0.0001295]
[1731784135635,0.5417388,91286.0,91285.0,0.00355408]
[1731784136542,0.054752,91279.0,91278.0,0.00058]
[1731784136743,0.05625613,91279.0,91278.0,0.0040046]
[1731784138645,0.05625613,91279.0,91278.0,0.00400462]
[1731784139330,0.13637613,91279.0,91278.0,0.00400462]
[1731784141040,0.13637613,91279.0,91278.0,0.00400466]
[1731784141244,0.13637613,91279.0,91278.0,1.00400466]
[1731784144353,0.13637613,91279.0,91278.0,1.0]
[1731784149139,0.13637613,91279.0,91278.0,0.95383805]
[1731784149441,0.13637613,91279.0,91278.0,0.72367921]
[1731784149442,0.26738666,91279.0,91278.0,0.72367921]
[1731784149650,0.26738666,91279.0,91278.0,0.67541182]
[1731784149651,0.13637613,91279.0,91278.0,0.67541182]
[1731784150245,0.13637613,91279.0,91273.0,0.00014198]
[1731784150246,0.26710225,91279.0,91273.0,1e-08]
[1731784150448,0.26710225,91279.0,91262.0,0.0051]
[1731784150449,0.054759,91267.0,91262.0,0.0051]
[1731784150638,0.53424323,91267.0,91251.0,0.0624]
[1731784150837,0.776368,91252.0,91251.0,0.0313]
[1731784151035,0.85799213,91252.0,91251.0,0.0313]
[1731784151446,0.85799213,91252.0,91251.0,0.03138516]
[1731784154945,0.85799213,91252.0,91251.0,8.516e-05]
[1731784155152,0.85807001,91252.0,91251.0,8.516e-05]
[1731784155650,0.90088354,91252.0,91251.0,8.516e-05]
[1731784157346,0.054772,91245.0,91244.0,0.0329]
[1731784157745,0.054772,91245.0,91240.0,0.0311]
[1731784157746,0.054775,91241.0,91240.0,0.0311]
[1731784157940,0.495255,91241.0,91240.0,0.0311]
[1731784158141,0.49675913,91241.0,91240.0,0.0311]
[1731784158350,0.054777,91237.0,91236.0,0.0326]
[1731784158547,0.054777,91237.0,91235.0,0.00011196]
[1731784159152,0.00150413,91236.0,91235.0,0.00011196]
[1731784161656,0.00150413,91236.0,91235.0,0.03331196]
[1731784162157,0.00150413,91236.0,91235.0,0.47171841]
[1731784162348,0.07979788,91252.0,91235.0,0.69151294]
[1731784162549,0.07979788,91252.0,91245.0,0.054772]
[1731784162746,7.788e-05,91252.0,91246.0,0.0623]
[1731784163848,7.788e-05,91252.0,91249.0,0.05477]
[1731784165158,7.788e-05,91252.0,91246.0,0.0623]
[1731784165348,7.788e-05,91252.0,91250.0,0.054769]
[1731784167253,7.788e-05,91252.0,91251.0,0.32970036]
[1731784167462,7.788e-05,91252.0,91251.0,0.13356319]
[1731784167961,7.788e-05,91252.0,91251.0,0.11986299]
[1731784168177,7.788e-05,91252.0,91251.0,0.13356313]
[1731784168455,7.788e-05,91252.0,91251.0,0.02397529]
[1731784168658,7.788e-05,91252.0,91251.0,0.01027515]
[1731784168864,7.788e-05,91252.0,91251.0,0.01370035]
[1731784169050,7.788e-05,91252.0,91250.0,0.054769]
[1731784169655,7.788e-05,91252.0,91251.0,0.02397515]
[1731784170762,7.788e-05,91252.0,91251.0,0.01370009]
[1731784171061,7.788e-05,91252.0,91251.0,0.02397495]
[1731784171266,7.788e-05,91252.0,91251.0,0.01370009]
[1731784171449,7.788e-05,91252.0,91251.0,0.02397523]
[1731784172164,7.788e-05,91252.0,91251.0,0.01370009]
[1731784172367,7.788e-05,91252.0,91250.0,0.054769]
[1731784172754,7.788e-05,91252.0,91251.0,0.01370033]
[1731784173659,7.788e-05,91252.0,91251.0,0.1335625]
[1731784173859,7.788e-05,91252.0,91251.0,0.4943625]
[1731784174056,7.788e-05,91252.0,91251.0,0.69049465]
[1731784174564,7.788e-05,91252.0,91251.0,0.81284756]
[1731784174765,7.788e-05,91252.0,91251.0,1.56674163]
[1731784175066,7.788e-05,91252.0,91251.0,1.22720029]
[1731784175364,7.788e-05,91252.0,91251.0,1.24089876]
[1731784175561,0.0051,91259.0,91258.0,0.054765]
[1731784175761,0.0051,91267.0,91266.0,0.05476]
[1731784175966,0.0051,91275.0,91270.0,0.09332323]
[1731784176161,0.07968,91285.0,91271.0,0.31483326]
[1731784176162,0.059851,91281.0,91271.0,0.31483326]
[1731784176357,0.059851,91281.0,91274.0,0.19616073]
[1731784176358,0.054751,91281.0,91274.0,0.19616073]
[1731784176557,0.05489195,91281.0,91278.0,0.054752]
[1731784177460,0.054752,91280.0,91278.0,0.054752]
[1731784177661,0.00014095,91281.0,91274.0,0.19616073]
[1731784177966,0.054755,91274.0,91272.0,0.25091673]
[1731784178461,0.054755,91274.0,91272.0,0.054756]
[1731784178667,0.054755,91274.0,91273.0,0.19616073]
[1731784179056,0.05489195,91281.0,91274.0,0.054755]
[1731784179565,0.054752,91280.0,91274.0,0.054755]
[1731784179764,0.054752,91280.0,91275.0,0.054754]
[1731784179960,0.054752,91280.0,91277.0,0.054753]
[1731784182676,0.3608,91278.0,91277.0,0.054753]
[1731784183074,0.00014095,91281.0,91271.0,0.55696073]
[1731784183374,0.00014095,91281.0,91280.0,0.054751]
[1731784187870,0.00142002,91313.0,91287.0,0.3982]
[1731784188075,0.00386354,91323.0,91320.0,0.054727]
[1731784188373,0.00386354,91323.0,91320.0,0.24842629]
[1731784188670,0.00386354,91323.0,91320.0,0.60922411]
[1731784188868,0.00386354,91323.0,91320.0,0.60592462]
[1731784189070,0.00386354,91323.0,91320.0,0.60250219]
[1731784190087,0.00386354,91323.0,91320.0,0.50917896]
[1731784192288,0.00386354,91323.0,91320.0,0.4954898]
[1731784192585,0.00386354,91323.0,91320.0,0.06853893]
[1731784193177,0.00386354,91323.0,91320.0,0.0548498]
[1731784193378,0.00386354,91323.0,91320.0,0.0685396]
[1731784193581,0.00386354,91323.0,91320.0,0.0548498]
[1731784193784,0.00386354,91323.0,91320.0,0.06853931]
[1731784194482,0.00386354,91323.0,91320.0,0.06853938]
[1731784194984,0.00386354,91323.0,91320.0,0.0548498]
[1731784195191,0.00386354,91323.0,91320.0,0.06853942]
[1731784195486,0.00386354,91323.0,91320.0,0.0548498]
[1731784196277,0.00386354,91323.0,91320.0,0.06853925]
[1731784197882,0.00386354,91323.0,91320.0,0.0548498]
[1731784198989,0.00386354,91323.0,91320.0,0.4156498]
[1731784199585,0.00386354,91323.0,91320.0,0.42933917]
[1731784199792,0.00386354,91323.0,91320.0,0.4156498]
[1731784200178,0.00386354,91323.0,91320.0,0.42933922]
[1731784201874,0.00386354,91323.0,91320.0,0.4156498]
[1731784202081,0.00386354,91323.0,91320.0,0.42933914]
[1731784204003,0.09584885,91321.0,91320.0,0.01381214]
[1731784204179,0.36332562,91321.0,91320.0,0.0001228]
[1731784204679,0.00252562,91321.0,91320.0,0.0001228]
[1731784210482,0.03272562,91321.0,91320.0,0.0001228]
[1731784214490,0.36124562,91321.0,91312.0,0.0051]
[1731784214694,0.054731,91314.0,91312.0,0.0051]
[1731784214879,0.054731,91314.0,91309.0,0.054734]
[1731784215497,0.054731,91314.0,91313.0,7.984e-05]
[1731784217485,0.10797125,91314.0,91313.0,7.984e-05]
[1731784218393,0.054731,91314.0,91313.0,7.984e-05]
[1731784218592,0.10797251,91314.0,91313.0,7.984e-05]
[1731784219193,0.054731,91314.0,91313.0,7.984e-05]
[1731784219390,0.21869412,91314.0,91313.0,7.984e-05]
[1731784219592,0.09929134,91314.0,91313.0,7.984e-05]
[1731784220597,0.46009134,91314.0,91313.0,7.984e-05]
[1731784221190,0.55341457,91314.0,91313.0,7.984e-05]
[1731784221395,0.46009134,91314.0,91313.0,7.984e-05]
[1731784221700,0.63465457,91314.0,91313.0,7.984e-05]
[1731784222191,0.68790275,91314.0,91313.0,7.984e-05]
[1731784222385,0.79855082,91314.0,91313.0,7.984e-05]
[1731784222586,0.70522759,91314.0,91313.0,7.984e-05]
[1731784222998,0.54133134,91314.0,91313.0,7.984e-05]
[1731784226410,0.40536034,91314.0,91313.0,7.984e-05]
[1731784226704,0.3608,91314.0,91313.0,0.03057984]
[1731784227095,0.0399,91317.0,91316.0,0.05473]
[1731784227407,0.0399,91317.0,91316.0,0.14805323]
[1731784229501,0.08443973,91317.0,91316.0,0.14805323]
[1731784229707,0.08443973,91317.0,91313.0,0.03057984]
[1731784229708,0.05473,91316.0,91314.0,0.19615345]
[1731784230009,0.05473,91316.0,91313.0,0.22673329]
[1731784230208,0.05473,91316.0,91313.0,0.28146429]
[1731784230410,0.05473,91316.0,91314.0,0.19615345]
[1731784232299,0.05473,91316.0,91315.0,0.19615345]
[1731784233306,0.05473,91316.0,91313.0,0.08531084]
[1731784234698,0.41553,91316.0,91314.0,0.19633828]
[1731784234900,0.3608,91316.0,91313.0,0.19641812]
[1731784235102,0.3608,91316.0,91313.0,7.984e-05]
[1731784235103,0.054731,91314.0,91313.0,7.984e-05]
[1731784235711,0.383251,91314.0,91313.0,7.984e-05]
[1731784235905,0.63303205,91314.0,91313.0,7.984e-05]
[1731784236097,0.43649862,91314.0,91313.0,7.984e-05]
[1731784237208,0.383251,91314.0,91313.0,7.984e-05]
[1731784237403,0.4364985,91314.0,91313.0,7.984e-05]
[1731784237599,0.54717115,91314.0,91313.0,7.984e-05]
[1731784237800,0.383251,91314.0,91313.0,7.984e-05]
[1731784237999,0.43649871,91314.0,91313.0,7.984e-05]
[1731784239098,0.43649989,91314.0,91313.0,7.984e-05]
[1731784239507,0.383251,91314.0,91313.0,7.984e-05]
[1731784239713,0.43649956,91314.0,91313.0,7.984e-05]
[1731784241107,0.383251,91314.0,91313.0,7.984e-05]
[1731784241413,0.43649935,91314.0,91313.0,7.984e-05]
[1731784242107,0.43649935,91314.0,91313.0,1e-08]
[1731784243711,0.383251,91314.0,91313.0,1e-08]
[1731784243903,0.43650024,91314.0,91313.0,1e-08]
[1731784245607,0.5715273,91314.0,91313.0,1e-08]
[1731784246609,0.43650024,91314.0,91313.0,1e-08]
[1731784247701,0.10798024,91314.0,91313.0,1e-08]
[1731784248308,0.579939,91314.0,91313.0,1e-08]
[1731784248508,0.43649845,91314.0,91313.0,1e-08]
[1731784249414,0.054731,91314.0,91313.0,1e-08]
[1731784249816,0.21864273,91314.0,91313.0,1e-08]
[1731784250109,0.054731,91314.0,91313.0,1e-08]
[1731784251503,0.54716273,91314.0,91313.0,1e-08]
[1731784251700,0.54716273,91314.0,91293.0,0.0319]
[1731784251701,0.09332323,91306.0,91293.0,0.0319]
[1731784251901,0.415543,91294.0,91293.0,0.0319]
[1731784252103,0.495583,91294.0,91293.0,0.0319]
[1731784252303,0.62672884,91294.0,91293.0,0.0319]
[1731784252806,0.495583,91294.0,91293.0,0.0319]
[1731784253706,0.62672884,91294.0,91293.0,0.0319]
[1731784253917,0.495583,91294.0,91293.0,0.0319]
[1731784257325,0.62669845,91294.0,91293.0,0.0319]
[1731784257509,0.495583,91294.0,91293.0,0.0319]
[1731784257731,0.67032325,91294.0,91293.0,0.0319]
[1731784258414,0.67033456,91294.0,91293.0,0.0319]
[1731784258616,0.53928282,91294.0,91293.0,0.0319]
[1731784259918,0.67033456,91294.0,91293.0,0.0319]
[1731784260325,0.53928282,91294.0,91293.0,0.0319]
[1731784260725,0.054748,91286.0,91285.0,0.00011145]
[1731784261620,0.415548,91286.0,91285.0,0.00011145]
[1731784262117,0.54663015,91286.0,91285.0,0.00011145]
[1731784262319,0.415548,91286.0,91285.0,0.00011145]
[1731784262817,0.3608,91286.0,91285.0,0.00011145]
[1731784263022,0.5247323,91286.0,91285.0,0.00011145]
[1731784263216,0.3608,91286.0,91285.0,0.00011145]
[1731784263527,0.1639323,91288.0,91285.0,0.00011145]
[1731784263718,0.13111981,91286.0,91285.0,0.00011145]
[1731784264029,0.13111981,91286.0,91285.0,0.05485945]
[1731784264323,0.13111981,91290.0,91286.0,0.054748]
[1731784264516,0.054745,91292.0,91286.0,0.054748]
[1731784264517,0.18586481,91292.0,91286.0,0.054748]
[1731784264720,0.054745,91292.0,91286.0,0.054748]
[1731784265426,0.18586481,91292.0,91286.0,0.054748]
[1731784265608,0.13111981,91291.0,91286.0,0.054748]
[1731784265814,0.18586481,91292.0,91286.0,0.054748]
[1731784266009,0.054745,91292.0,91286.0,0.054748]
[1731784266612,0.02191563,91288.0,91286.0,0.054748]
[1731784273822,0.07666263,91288.0,91286.0,0.054748]
[1731784274030,0.054748,91287.0,91285.0,0.00011145]
[1731784275732,0.15303544,91288.0,91286.0,0.054748]
[1731784275925,0.13111981,91288.0,91286.0,0.054748]
[1731784276234,0.13111981,91289.0,91287.0,0.054747]
[1731784276423,0.21047981,91291.0,91285.0,0.00011145]
[1731784276624,0.21047981,91291.0,91289.0,0.054746]
[1731784276625,0.07936,91291.0,91289.0,0.054746]
[1731784276830,0.04369982,91294.0,91293.0,0.054744]
[1731784277133,0.07936,91296.0,91294.0,0.054742]
[1731784278026,0.13111981,91301.0,91290.0,0.32493793]
[1731784278234,0.0051,91302.0,91296.0,0.09332323]
[1731784278428,0.04436722,91302.0,91301.0,0.054738]
[1731784278640,0.07936,91303.0,91301.0,0.054738]
[1731784279932,0.1237712,91303.0,91301.0,0.054738]
[1731784280139,0.1237712,91303.0,91296.0,0.054741]
[1731784280140,0.05474,91300.0,91296.0,0.054741]
[1731784280339,0.18592981,91300.0,91296.0,0.054741]
[1731784280731,0.18592981,91300.0,91290.0,0.0634]
[1731784280732,0.13118981,91299.0,91290.0,0.0634]
[1731784280940,0.13118981,91298.0,91297.0,0.054741]
[1731784282256,0.23025332,91303.0,91292.0,0.054744]
[1731784282257,0.13118981,91299.0,91292.0,0.054744]
[1731784282443,0.054744,91292.0,91290.0,0.0634]
[1731784282741,0.5247323,91298.0,91290.0,0.0328]
[1731784282742,0.07936,91293.0,91290.0,0.0328]
[1731784282928,0.07936,91293.0,91284.0,0.054749]
[1731784283129,0.13121591,91289.0,91284.0,0.054749]
[1731784283334,0.13121591,91288.0,91279.0,0.0309]
[1731784283531,0.13121591,91288.0,91285.0,0.05485945]
[1731784284131,0.13121591,91287.0,91285.0,0.05485945]
[1731784284646,0.2432923,91293.0,91287.0,0.054747]
[1731784284647,0.13121591,91288.0,91287.0,0.054747]
[1731784284836,0.13121591,91289.0,91287.0,0.054747]
[1731784285332,0.13121591,91288.0,91287.0,0.054747]
[1731784285533,0.13121591,91292.0,91291.0,0.054745]
[1731784285734,0.17584621,91294.0,91287.0,0.17827023]
[1731784285933,0.13121591,91295.0,91293.0,0.054744]
[1731784286334,0.13121591,91296.0,91295.0,0.054742]
[1731784287140,0.48371496,91298.0,91297.0,0.054741]
[1731784287450,0.12291496,91298.0,91297.0,0.054741]
[1731784293950,0.16849298,91302.0,91301.0,0.054739]
[1731784293951,0.13629298,91302.0,91301.0,0.054739]
[1731784294246,0.3608,91307.0,91305.0,0.054736]
[1731784296144,0.08469203,91309.0,91303.0,0.26153793]
[1731784296452,0.08469203,91309.0,91308.0,0.054735]
[1731784297040,0.08469203,91309.0,91304.0,0.26153793]
[1731784297243,0.08469203,91309.0,91302.0,0.26153793]
[1731784297552,0.08469203,91309.0,91307.0,0.054735]
[1731784300152,0.08469203,91309.0,91302.0,0.26153793]
[1731784300452,0.08469203,91309.0,91300.0,0.054739]
[1731784300453,0.3608,91305.0,91301.0,0.26153793]
[1731784300639,0.3608,91305.0,91300.0,0.31627693]
[1731784300845,0.3608,91305.0,91300.0,0.054739]
[1731784301356,0.3608,91305.0,91302.0,0.054738]
[1731784301746,0.054739,91300.0,91297.0,0.26153793]
[1731784301944,0.3608,91305.0,91293.0,0.26153793]
[1731784301945,0.054743,91294.0,91293.0,0.26153793]
[1731784302254,0.054743,91294.0,91287.0,0.3982]
[1731784302255,0.054746,91289.0,91287.0,0.3982]
[1731784305659,0.09919323,91289.0,91287.0,0.3982]
[1731784305860,0.09919323,91289.0,91285.0,0.00011145]
[1731784307263,0.13117291,91286.0,91285.0,0.00011145]
[1731784307452,0.13117232,91286.0,91285.0,0.00011145]
[1731784307762,0.13117232,91286.0,91251.0,0.45769138]
[1731784307763,0.054751,91281.0,91276.0,0.054754]
[1731784307967,0.13117742,91278.0,91276.0,0.054754]
[1731784308161,0.13117742,91277.0,91276.0,0.054754]
[1731784308468,0.13117742,91278.0,91276.0,0.054754]
[1731784308656,0.07936,91280.0,91277.0,0.00013489]
[1731784312755,0.00150541,91279.0,91277.0,0.00013489]
[1731784313863,0.00150541,91278.0,91277.0,0.00013489]
[1731784319370,0.059849,91285.0,91277.0,0.02752714]
[1731784319558,0.059849,91285.0,91283.0,0.054749]
[1731784319767,0.054749,91285.0,91284.0,0.0311]
[1731784321360,0.04360714,91287.0,91277.0,0.00013489]
[1731784321563,0.054752,91279.0,91277.0,0.00013489]
[1731784323175,0.415549,91285.0,91278.0,0.054752]
[1731784323464,0.054751,91281.0,91278.0,0.054752]
[1731784324369,0.054751,91281.0,91279.0,0.054752]
[1731784324875,0.059848,91286.0,91281.0,0.054751]
[1731784325061,0.04479996,91286.0,91281.0,0.054751]
[1731784325261,0.07936,91290.0,91281.0,0.054751]
[1731784325572,0.05475,91283.0,91281.0,0.054751]
[1731784326560,0.02191534,91291.0,91277.0,0.00013489]
[1731784326764,0.07936,91290.0,91277.0,0.00013489]
[1731784326965,0.054746,91289.0,91277.0,0.00013489]
[1731784327264,0.054746,91289.0,91278.0,0.26153793]
[1731784327484,0.07936,91290.0,91277.0,0.00013489]
[1731784327485,0.07936,91290.0,91280.0,0.26153793]
[1731784327676,0.059844,91292.0,91291.0,0.054745]
[1731784327970,0.07936,91292.0,91291.0,0.054745]
[1731784330281,0.09884704,91293.0,91291.0,0.054745]
[1731784331459,0.04410304,91293.0,91291.0,0.054745]
[1731784331771,0.07936,91295.0,91293.0,0.054743]
[1731784332184,0.07936,91297.0,91293.0,0.415543]
[1731784332470,0.05325098,91296.0,91293.0,0.415543]
[1731784332676,0.10799298,91296.0,91293.0,0.415543]
[1731784332863,0.054742,91296.0,91293.0,0.415543]
[1731784333183,0.05325151,91295.0,91293.0,0.415543]
[1731784333466,0.054742,91296.0,91293.0,0.415543]
[1731784333872,0.07936,91297.0,91293.0,0.415543]
[1731784333873,0.054743,91295.0,91293.0,0.415543]
[1731784334080,0.054743,91295.0,91293.0,0.3608]
[1731784334286,0.054746,91289.0,91288.0,0.0318]
[1731784335272,0.20132679,91289.0,91288.0,0.0318]
[1731784335473,0.20132679,91289.0,91278.0,0.054752]
[1731784335474,0.14658079,91289.0,91278.0,0.054752]
[1731784335670,0.05326012,91288.0,91276.0,0.3608]
[1731784335969,0.054751,91282.0,91276.0,0.3608]
[1731784336471,0.054751,91282.0,91276.0,0.415553]
[1731784338863,0.07932,91287.0,91276.0,0.415553]
[1731784339167,0.054752,91280.0,91276.0,0.3608]
[1731784339473,0.054752,91280.0,91278.0,0.26153793]
[1731784339671,0.054752,91280.0,91277.0,0.26167282]
[1731784340071,0.054752,91279.0,91277.0,0.00013489]
[1731784340464,0.0301,91278.0,91277.0,0.00013489]
[1731784342966,0.054753,91277.0,91276.0,0.31007665]
[1731784343163,0.134113,91277.0,91276.0,0.31007665]
[1731784343574,0.054756,91272.0,91269.0,0.26153793]
[1731784343776,0.07936,91277.0,91269.0,0.26153793]
[1731784343777,0.054757,91271.0,91269.0,0.26153793]
[1731784344082,0.054757,91271.0,91270.0,0.00013078]
[1731784348080,0.09332323,91274.0,91270.0,0.00013078]
[1731784348289,0.07936,91277.0,91270.0,0.00013078]
[1731784348876,0.054755,91274.0,91270.0,0.00013078]
[1731784349688,0.054756,91273.0,91270.0,0.00013078]
[1731784349987,0.07417572,91278.0,91270.0,0.09345401]
[1731784349988,0.04407572,91278.0,91270.0,0.09345401]
[1731784350175,0.05475,91282.0,91277.0,0.3608]
[1731784350375,0.07936,91281.0,91278.0,0.031]
[1731784354687,0.05326182,91280.0,91278.0,0.031]
[1731784355486,0.054752,91279.0,91278.0,0.031]
[1731784355693,0.10801382,91279.0,91278.0,0.031]
[1731784357390,0.054752,91279.0,91278.0,0.031]
[1731784357780,0.10801397,91279.0,91278.0,0.031]
[1731784362806,0.054752,91279.0,91278.0,0.031]
[1731784366591,0.054752,91279.0,91278.0,0.29253793]
[1731784367392,0.054752,91279.0,91278.0,0.031]
[1731784369707,0.25147135,91279.0,91278.0,0.031]
[1731784369898,0.10801491,91279.0,91278.0,0.031]
[1731784371605,0.10801542,91279.0,91278.0,0.031]
[1731784376107,0.30515196,91279.0,91278.0,0.031]
[1731784376304,0.30515264,91279.0,91278.0,0.031]
[1731784377595,0.054752,91279.0,91278.0,0.031]
[1731784379310,0.054752,91279.0,91278.0,0.29253793]
[1731784379699,0.054752,91279.0,91278.0,0.031]
[1731784379903,0.054752,91279.0,91278.0,0.29253793]
[1731784380205,0.054752,91279.0,91278.0,0.031]
[1731784380400,0.054752,91279.0,91278.0,0.29253793]
[1731784380714,0.054752,91279.0,91278.0,0.031]
[1731784380902,0.054752,91279.0,91278.0,0.29253793]
[1731784381908,0.054752,91279.0,91278.0,0.031]
[1731784382500,0.16430106,91281.0,91278.0,0.65333793]
[1731784382695,0.07932,91280.0,91279.0,0.0302]
[1731784386303,0.24365577,91280.0,91279.0,0.0302]
[1731784390004,0.29840677,91280.0,91279.0,0.0302]
[1731784391621,0.054752,91279.0,91278.0,0.031]
[1731784391921,0.054753,91277.0,91276.0,0.26246917]
[1731784392716,0.05326472,91277.0,91273.0,0.0317]
[1731784392904,0.1971947,91274.0,91273.0,0.0317]
[1731784393315,0.25045942,91275.0,91273.0,0.0317]
[1731784393616,0.25045942,91274.0,91273.0,0.0317]
[1731784393822,0.05326472,91274.0,91273.0,0.0317]
[1731784394517,0.25045942,91275.0,91273.0,0.0317]
[1731784394820,0.11453141,91274.0,91273.0,0.0317]
[1731784395019,0.31172611,91274.0,91273.0,0.0317]
[1731784395209,0.11453141,91274.0,91273.0,0.0317]
[1731784395415,0.05326472,91274.0,91273.0,0.0317]
[1731784395815,0.05326497,91274.0,91273.0,0.0317]
[1731784396429,0.19718729,91274.0,91273.0,0.0317]
[1731784396727,0.25045226,91274.0,91273.0,0.0317]
[1731784397428,0.05326497,91274.0,91273.0,0.0317]
[1731784397923,0.19718839,91274.0,91273.0,0.0317]
[1731784398123,0.25045336,91274.0,91273.0,0.0317]
[1731784399022,0.25045366,91274.0,91273.0,0.0317]
[1731784399827,0.09930497,91274.0,91273.0,0.0317]
[1731784404217,0.054757,91271.0,91270.0,0.00523078]
[1731784404416,0.11602369,91271.0,91270.0,0.26264921]
[1731784404620,0.11602369,91271.0,91270.0,0.00013078]
[1731784404917,0.16929565,91271.0,91270.0,0.00013078]
[1731784406020,0.10802896,91271.0,91270.0,0.00013078]
[1731784406222,0.16929565,91271.0,91270.0,0.00013078]
[1731784407857,0.63017415,91271.0,91270.0,0.00013078]
[1731784408141,0.11602869,91262.0,91261.0,0.0051]
[1731784408337,0.11602869,91262.0,91246.0,0.19691819]
[1731784408338,0.054766,91256.0,91255.0,0.0051]